fUSD/lending_fUSD_20240922
["ID","MTS","AMOUNT","RATE_DAILY","PERIOD"]
[338880288,1726995083380,724.06,0.00010959,2]
[338880296,1726995341449,210.7698,0.000133,30]
[338880297,1726995366543,632.30942,0.000135,30]
[338880298,1726995423947,290.53,0.00010267,2]
[338880299,1726995495598,229.0,0.00012153,2]
[338880300,1726995501795,181.22496,0.00021,60]
[338880301,1726995718050,250.0,0.00011965,2]
[338880302,1726995731116,150.0,0.000121,2]
[338880303,1726995855381,258.24,0.00012029,2]
[338880305,1726995973827,284.6,0.0001041,2]
[338880391,1726996197842,500.0,0.0001041,2]
[338880392,1726996198193,500.0,0.0001041,2]
[338880393,1726996198488,274.0,0.0001041,2]
[338880395,1726996213575,187.17,0.00010959,2]
[338880408,1726996231729,-3400.0,0.000123,4]
[338880409,1726996231739,-273.34,0.00012363,2]
[338880410,1726996231749,-300.0,0.00012399,2]
[338880411,1726996231759,-6900.0,0.000124,4]
[338880412,1726996231769,-1000.0,0.00012449,2]
[338880413,1726996231778,-10400.0,0.000125,4]
[338880414,1726996231788,-601.581,0.00012531,2]
[338880415,1726996231797,-168.336,0.00012531,2]
[338880416,1726996231808,-13900.0,0.000126,4]
[338880417,1726996231818,-499.99,0.000126,2]
[338880418,1726996231827,-284.6,0.00012674,2]
[338880419,1726996231837,-912.8,0.00012674,2]
[338880420,1726996231847,-2941.57430783,0.0001269,2]
[338880421,1726996231857,-150.0,0.00012699,2]
[338880422,1726996231867,-17400.0,0.000127,4]
[338880423,1726996231876,-3400.0,0.000128,4]
[338880424,1726996231886,-395.16004784,0.0001282,2]
[338880425,1726996231895,-182.17945132,0.000129,2]
[338880426,1726996231907,-6285.40837568,0.000129,2]
[338880427,1726996231919,-1267.92666,0.000129,2]
[338880428,1726996231931,-1761.546613,0.000129,2]
[338880429,1726996231940,-173.61826801,0.000129,2]
[338880430,1726996231950,-170.14506379,0.000129,2]
[338880431,1726996231960,-350.0,0.000129,2]
[338880432,1726996231970,-3400.0,0.000129,4]
[338880434,1726996231979,-6247.04328863,0.000129,2]
[338880435,1726996231988,-158.8066396,0.000129,2]
[338880436,1726996231997,-169.00379342,0.000129,2]
[338880437,1726996232007,-198.54068962,0.000129,2]
[338880438,1726996232017,-10000.0,0.00012919,2]
[338880439,1726996232026,-503.97595646,0.00012973,2]
[338880440,1726996232036,-500.0,0.00012973,2]
[338880441,1726996232046,-153.74,0.0001299,2]
[338880442,1726996232056,-153.74,0.0001299,2]
[338880443,1726996232066,-153.74,0.0001299,2]
[338880444,1726996232076,-153.74,0.0001299,2]
[338880445,1726996232086,-153.74,0.0001299,2]
[338880446,1726996232094,-153.74,0.0001299,2]
[338880447,1726996232104,-153.74,0.0001299,2]
[338880448,1726996232114,-153.74,0.0001299,2]
[338880449,1726996232124,-153.74,0.0001299,2]
[338880450,1726996232133,-153.74,0.0001299,2]
[338880451,1726996232143,-153.74,0.0001299,2]
[338880452,1726996232152,-153.74,0.0001299,2]
[338880453,1726996232162,-2286.6080199,0.00012998,2]
[338880454,1726996232172,-199.30226172,0.00012999,2]
[338880455,1726996232182,-500.0,0.00012999,2]
[338880456,1726996232191,-457.56971523,0.00012999,2]
[338880457,1726996232201,-151161.55712434,0.00013,2]
[338880458,1726996232210,-14542.40256585,0.00013,2]
[338880459,1726996232222,-74266.00822228,0.00013,2]
[338880460,1726996232233,-764.7986458,0.00013,2]
[338880461,1726996232246,-655.08169987,0.00013,2]
[338880462,1726996232258,-1161.35257624,0.00013,2]
[338880463,1726996232271,-1184.24886143,0.00013,2]
[338880464,1726996232282,-3931.62809847,0.00013,2]
[338880465,1726996232297,-1271.81586663,0.00013,2]
[338880467,1726996234045,321.1918,0.000122,2]
[338880471,1726996238063,-301.18,0.00013,2]
[338880472,1726996238075,-9355.59598722,0.00013,2]
[338880473,1726996238087,-7284.11401147,0.00013,2]
[338880474,1726996238098,-12261.65,0.00013,2]
[338880475,1726996238111,-21707.91551847,0.00013,2]
[338880476,1726996238123,-14000.0,0.00013,2]
[338880478,1726996238134,-886.945,0.00013,2]
[338880481,1726996238149,-462507.8680776,0.00013,2]
[338880483,1726996238160,-29065.75958173,0.00013,2]
[338880485,1726996238174,-2363.79206653,0.00013,2]
[338880487,1726996238185,-551.54977433,0.00013,2]
[338880505,1726996239816,-356.22031537,0.00013,2]
[338880589,1726996371267,255.37,0.00010959,2]
[338880590,1726996466758,176.43,0.00010037,2]
[338880591,1726996603334,288.54,0.00010489,2]
[338880592,1726996796040,179.88,0.00010959,2]
[338880593,1726996942847,739.14648,0.00012175,2]
[338880594,1726996949812,274.37,0.00012203,2]
[338880595,1726997007831,496.89,0.00012102,2]
[338880596,1726997096023,223.91,0.00012118,2]
[338880597,1726997113422,150.0,0.00011688,2]
[338880598,1726997115308,397.41,0.00012039,2]
[338880599,1726997115507,397.41,0.00012042,2]
[338880600,1726997115724,397.41,0.00012045,2]
[338880601,1726997116103,397.41,0.00012049,2]
[338880602,1726997116356,397.41,0.00012052,2]
[338880603,1726997116572,397.41,0.00012055,2]
[338880604,1726997116968,81.1492983,0.00012058,2]
[338880605,1726997116997,316.2607017,0.00012058,2]
[338880606,1726997117175,397.41,0.00012061,2]
[338880607,1726997117374,397.41,0.00012064,2]
[338880608,1726997117571,174.9192983,0.00012068,2]
[338880610,1726997159946,21004.77,0.00011675,2]
[338880611,1726997169935,274.11,9.769e-05,2]
[338880612,1726997187803,250.0,0.00011646,2]
[338880613,1726997194412,250.0,0.00011664,2]
[338880625,1726997343572,3199.36,0.0001166,2]
[338880683,1726997415624,6837.14,0.00011657,2]
[338880688,1726997432031,-274.11,0.00012033,2]
[338880689,1726997432041,-222.4907017,0.00012068,2]
[338880690,1726997432051,-397.41,0.00012071,2]
[338880691,1726997432061,-397.41,0.00012074,2]
[338880692,1726997432070,-397.41,0.00012077,2]
[338880693,1726997432080,-397.41,0.0001208,2]
[338880694,1726997432090,-397.41,0.00012083,2]
[338880695,1726997432103,-397.41,0.00012087,2]
[338880696,1726997432113,-322.08437525,0.0001209,2]
[338880697,1726997432125,-75.32562475,0.0001209,2]
[338880698,1726997432135,-179.65126771,0.00012093,2]
[338880699,1726997432146,-217.75873229,0.00012093,2]
[338880701,1726997432156,-499.99,0.00012093,2]
[338880703,1726997432166,-397.41,0.00012096,2]
[338880704,1726997432175,-397.41,0.00012099,2]
[338880705,1726997432184,-3237.43126771,0.00012137,2]
[338880709,1726997438041,-296.76343229,0.00012137,2]
[338880710,1726997438051,-300.0,0.00012236,2]
[338880711,1726997438061,-250.0,0.00012237,2]
[338880712,1726997438072,-172.09,0.00012237,2]
[338880713,1726997438082,-600.0,0.000123,4]
[338880714,1726997438091,-264.48,0.00012335,2]
[338880715,1726997438105,-1200.0,0.000124,4]
[338880716,1726997438115,-6.53912764,0.000125,4]
[338880717,1726997438127,-1234.63522344,0.000125,4]
[338880718,1726997438431,-558.82564892,0.000125,4]
[338880719,1726997438442,-168.81,0.00012528,2]
[338880720,1726997438452,-390.28607317,0.000126,4]
[338880721,1726997438494,-1004.60953014,0.000126,4]
[338880857,1726997440146,-1105.10439669,0.000126,4]
[338880859,1726997440155,-3100.0,0.000127,4]
[338880861,1726997440165,-1000.0,0.00012791,2]
[338880862,1726997440174,-516.72511527,0.000128,4]
[338880870,1726997443107,-83.27488473,0.000128,4]
[338880871,1726997443118,-316.555046,0.00012821,2]
[338880872,1726997443127,-491.4280646,0.0001287,2]
[338880880,1726997445889,-250.0,0.0001287,2]
[338880881,1726997445945,-1006.85021793,0.0001287,2]
[338880882,1726997445956,-150.0,0.00012876,2]
[338880883,1726997445967,-3.57247563,0.00012877,2]
[338880886,1726997763089,246.69,0.00010125,2]
[338880887,1726997987191,157.95,0.00010959,2]
[338880888,1726998072606,271.92,0.00011995,2]
[338880889,1726998106488,250.0,0.00011969,2]
[338880890,1726998207035,170.09,0.0001199,2]
[338880891,1726998256475,176.43,9.584e-05,2]
[338880892,1726998271787,-170.42,0.00012046,2]
[338880893,1726998271813,-218.67,0.00012074,2]
[338880894,1726998271834,-468.6,0.000121,2]
[338880895,1726998271857,-246.69,0.00012389,2]
[338880896,1726998271878,-1000.0,0.00012396,2]
[338880899,1726998312213,252.33,0.00010113,2]
[338880900,1726998312651,252.33,0.00012376,2]
[338880901,1726998314504,275.15591882,0.00011688,2]
[338880917,1726998518575,153.17,0.00010959,2]
[338880976,1726998600700,2481.76,0.00012028,2]
[338880980,1726998632056,-152.56,0.00012785,2]
[338880981,1726998632066,-97.44,0.00012785,2]
[338880982,1726998632290,-161.95848917,0.00012785,2]
[338880983,1726998632300,-2852.55851083,0.0001279,2]
[338880984,1726998632352,-89.41748917,0.0001279,2]
[338880985,1726998632362,-3068.3798,0.0001279,2]
[338880986,1726998632371,-1706.24,0.0001279,2]
[338880987,1726998632381,-1413.46271083,0.0001279,2]
[338880988,1726998632412,-294.15884645,0.0001279,2]
[338881029,1726998638251,-10000.0,0.00012785,2]
[338881030,1726998638261,-4449.70232105,0.0001279,2]
[338881031,1726998638272,-150.0,0.00012849,2]
[338881032,1726998638285,-500.57611621,0.00012873,2]
[338881033,1726998638297,-500.0,0.00012873,2]
[338881034,1726998638307,-150.0,0.00012876,2]
[338881035,1726998638316,-1000.0,0.00012877,2]
[338881036,1726998638326,-1000.0,0.00012877,2]
[338881037,1726998638335,-1000.0,0.00012877,2]
[338881038,1726998638344,-1000.0,0.00012877,2]
[338881039,1726998638354,-1000.0,0.00012877,2]
[338881040,1726998638364,-1000.0,0.00012877,2]
[338881041,1726998638374,-1000.0,0.00012877,2]
[338881042,1726998638383,-1000.0,0.00012877,2]
[338881043,1726998638392,-1000.0,0.00012877,2]
[338881044,1726998638402,-1000.0,0.00012877,2]
[338881045,1726998638411,-1000.0,0.00012877,2]
[338881046,1726998638421,-1000.0,0.00012877,2]
[338881047,1726998638430,-1000.0,0.00012877,2]
[338881048,1726998638440,-1000.0,0.00012877,2]
[338881049,1726998638449,-1000.0,0.00012877,2]
[338881050,1726998638458,-180839.66191441,0.00012877,2]
[338881051,1726998638468,-481.265,0.00012877,2]
[338881052,1726998638477,-168.336,0.00012877,2]
[338881053,1726998638487,-999.99,0.00012877,2]
[338881054,1726998638496,-821.04,0.00012877,2]
[338881055,1726998638506,-867.7,0.00012877,2]
[338881056,1726998638515,-499.99,0.00012877,2]
[338881057,1726998638525,-61589.7382,0.0001289,2]
[338881058,1726998638536,-190.3659,0.0001289,2]
[338881059,1726998638545,-2118.4782,0.0001289,2]
[338881061,1726998638554,-3684.9522,0.0001289,2]
[338881063,1726998638564,-173.42378679,0.0001289,2]
[338881065,1726998638573,-2015.16847949,0.000129,2]
[338881066,1726998638582,-827.350988,0.000129,2]
[338881067,1726998638592,-171.91852514,0.000129,2]
[338881068,1726998638601,-170.14506379,0.000129,2]
[338881069,1726998638611,-932.31,0.000129,2]
[338881070,1726998638621,-207.18361201,0.000129,2]
[338881071,1726998638630,-222.16230457,0.000129,2]
[338881072,1726998638639,-169.00379342,0.000129,2]
[338881073,1726998638649,-157.63939403,0.000129,2]
[338881074,1726998638659,-1692.32399464,0.000129,2]
[338881075,1726998638668,-6157.32387827,0.00012969,2]
[338881076,1726998638678,-500.0,0.00012973,2]
[338881077,1726998638688,-500.0,0.00012973,2]
[338881078,1726998638698,-500.0,0.00012973,2]
[338881079,1726998638708,-152.79,0.0001298,2]
[338881080,1726998638717,-28090.16823233,0.00012989,2]
[338881081,1726998638727,-324568.6453632,0.0001299,2]
[338881082,1726998638737,-245.1979683,0.00012998,2]
[338881083,1726998638747,-13964.546853,0.00012998,2]
[338881084,1726998638756,-2354.2116435,0.00012998,2]
[338881085,1726998638766,-2577.6078549,0.00012998,2]
[338881086,1726998638775,-1000.0,0.00012999,2]
[338881087,1726998638787,-791.0,0.00012999,2]
[338881088,1726998638797,-500.0,0.00012999,2]
[338881089,1726998638807,-500.0,0.00012999,2]
[338881090,1726998638817,-347.78045489,0.00012999,2]
[338881091,1726998638827,-544.0,0.00013,2]
[338881092,1726998638836,-1185658.45721535,0.00013,2]
[338881093,1726998638849,-251.17332111,0.00013,2]
[338881094,1726998638860,-700.0,0.00013,2]
[338881109,1726998646058,-500.0,0.00012873,2]
[338881110,1726998646068,-500.0,0.00012999,2]
[338881111,1726998646077,-199.30226172,0.00012999,2]
[338881112,1726998646086,-457.56971523,0.00012999,2]
[338881113,1726998646095,-133.25593205,0.00013,2]
[338881114,1726998646337,-410.74406795,0.00013,2]
[338881115,1726998646346,-639.42093205,0.00013,2]
[338881119,1726998808354,1050.0,0.00011,2]
[338881120,1726998850169,234.66,0.00010139,2]
[338881121,1726999108391,177.81,0.00010959,2]
[338881122,1726999306271,250.0,0.00011858,2]
[338881123,1726999329821,275.65,0.00011912,2]
[338881124,1726999351975,211.41,0.0001193,2]
[338881125,1726999502766,387.67236248,0.00011688,2]
[338881126,1726999503095,387.67236248,0.00011701,2]
[338881127,1726999503433,387.67236248,0.00011714,2]
[338881128,1726999503803,387.67236248,0.00011727,2]
[338881129,1726999504119,387.67236248,0.0001174,2]
[338881130,1726999504514,387.67236248,0.00011753,2]
[338881131,1726999504918,387.67236248,0.00011766,2]
[338881132,1726999505279,387.67236248,0.00011779,2]
[338881133,1726999505612,387.67236248,0.00011793,2]
[338881134,1726999505963,387.67236248,0.00011806,2]
[338881135,1726999506299,387.67236248,0.00011819,2]
[338881136,1726999506630,387.67236248,0.00011832,2]
[338881137,1726999506970,387.67236248,0.00011845,2]
[338881138,1726999507328,387.67236248,0.00011858,2]
[338881139,1726999507644,387.67236248,0.00011871,2]
[338881140,1726999507974,387.67236248,0.00011884,2]
[338881141,1726999508317,387.67236248,0.00011898,2]
[338881142,1726999508645,387.67236248,0.00011911,2]
[338881143,1726999508982,387.67236248,0.00011924,2]
[338881144,1726999509371,387.67236248,0.00011937,2]
[338881145,1726999509687,387.67236248,0.0001195,2]
[338881146,1726999510137,387.67236248,0.00011963,2]
[338881147,1726999510474,387.67236248,0.00011976,2]
[338881148,1726999510788,387.67236248,0.00011989,2]
[338881149,1726999511553,387.67236248,0.00012002,2]
[338881150,1726999511874,387.67236248,0.00012016,2]
[338881151,1726999512247,387.67236248,0.00012029,2]
[338881152,1726999526270,230.45,9.709e-05,2]
[338881153,1726999526628,230.45,0.00011973,2]
[338881171,1726999542067,150.0,0.00011688,2]
[338881172,1726999542423,150.0,0.00011716,2]
[338881173,1726999542766,150.0,0.00011744,2]
[338881174,1726999543214,150.0,0.00011772,2]
[338881175,1726999543411,150.0,0.00011801,2]
[338881176,1726999543775,150.0,0.00011829,2]
[338881177,1726999544092,150.0,0.00011857,2]
[338881178,1726999544427,150.0,0.00011885,2]
[338881179,1726999544748,150.0,0.00011914,2]
[338881180,1726999545063,150.0,0.00011942,2]
[338881181,1726999545486,150.0,0.0001197,2]
[338881182,1726999545813,150.0,0.00011998,2]
[338881183,1726999546107,150.0,0.00012026,2]
[338881184,1726999561778,150.42432564,0.00011688,2]
[338881185,1726999565522,213.0,0.00011688,2]
[338881186,1726999565862,213.0,0.00011701,2]
[338881187,1726999566168,213.0,0.00011714,2]
[338881188,1726999566572,213.0,0.00011727,2]
[338881189,1726999566882,213.0,0.0001174,2]
[338881190,1726999567738,213.0,0.00011753,2]
[338881191,1726999568080,213.0,0.00011766,2]
[338881192,1726999568417,213.0,0.00011779,2]
[338881193,1726999568730,213.0,0.00011793,2]
[338881194,1726999569178,213.0,0.00011806,2]
[338881195,1726999569504,213.0,0.00011819,2]
[338881196,1726999569827,213.0,0.00011832,2]
[338881197,1726999570205,213.0,0.00011845,2]
[338881198,1726999570978,213.0,0.00011858,2]
[338881199,1726999571323,213.0,0.00011871,2]
[338881200,1726999571653,213.0,0.00011884,2]
[338881201,1726999572003,213.0,0.00011898,2]
[338881202,1726999572285,213.0,0.00011911,2]
[338881203,1726999572625,213.0,0.00011924,2]
[338881204,1726999572959,213.0,0.00011937,2]
[338881205,1726999573310,213.0,0.0001195,2]
[338881206,1726999573693,213.0,0.00011963,2]
[338881207,1726999573982,213.0,0.00011976,2]
[338881208,1726999574323,213.0,0.00011989,2]
[338881209,1726999574635,213.0,0.00012002,2]
[338881210,1726999575403,213.0,0.00012016,2]
[338881211,1726999575729,213.0,0.00012029,2]
[338881224,1726999603823,150.0,0.00011688,2]
[338881225,1726999607606,150.0,0.00011688,2]
[338881226,1726999611333,150.45961711,0.00011688,2]
[338881227,1726999613219,150.0,0.00011688,2]
[338881228,1726999613548,150.0,0.00011788,2]
[338881229,1726999613884,150.0,0.00011887,2]
[338881230,1726999614204,150.0,0.00011987,2]
[338881231,1726999622923,150.0,0.00011688,2]
[338881232,1726999623262,150.0,0.0001185,2]
[338881233,1726999623579,150.0,0.00012012,2]
[338881258,1726999783184,1000.0,0.00011421,2]
[338881268,1726999832300,-300.0,0.00012042,2]
[338881269,1726999832470,-87.67236248,0.00012042,2]
[338881270,1726999832480,-213.0,0.00012042,2]
[338881271,1726999832491,-150.0,0.00012055,2]
[338881272,1726999832500,-387.67236248,0.00012055,2]
[338881273,1726999832510,-213.0,0.00012055,2]
[338881274,1726999832519,-1702.65242174,0.00012055,2]
[338881275,1726999832529,-253.4028533,0.00012068,2]
[338881276,1726999832541,-134.26950918,0.00012068,2]
[338881277,1726999832550,-213.0,0.00012068,2]
[338881278,1726999832560,-300.0,0.00012069,2]
[338881279,1726999832569,-6611.9287,0.0001207,2]
[338881280,1726999832579,-219.85,0.00012077,2]
[338881281,1726999832588,-387.67236248,0.00012081,2]
[338881283,1726999832598,-213.0,0.00012081,2]
[338881285,1726999832607,-150.0,0.00012083,2]
[338881287,1726999832617,-6432.91513447,0.00012083,2]
[338881289,1726999832628,-1440.26954301,0.00012083,2]
[338881290,1726999832640,-739.32803792,0.00012083,2]
[338881294,1726999838405,-1387.4772846,0.00012083,2]
[338881295,1726999838415,-299.99,0.00012083,2]
[338881296,1726999838426,-499.99,0.00012083,2]
[338881298,1726999838434,-150.0,0.00012087,2]
[338881299,1726999838443,-387.67236248,0.00012094,2]
[338881300,1726999838453,-213.0,0.00012094,2]
[338881301,1726999838462,-387.67236248,0.00012107,2]
[338881302,1726999838471,-213.0,0.00012107,2]
[338881303,1726999838481,-150.0,0.00012111,2]
[338881304,1726999838491,-387.67236248,0.00012121,2]
[338881305,1726999838501,-213.0,0.00012121,2]
[338881306,1726999838511,-387.67236248,0.00012134,2]
[338881307,1726999838520,-213.0,0.00012134,2]
[338881308,1726999838530,-150.0,0.00012139,2]
[338881309,1726999838540,-122.18043077,0.00012147,2]
[338881310,1726999838552,-265.49193171,0.00012147,2]
[338881311,1726999838562,-213.0,0.00012147,2]
[338881312,1726999838571,-387.67236248,0.0001216,2]
[338881313,1726999838581,-213.0,0.0001216,2]
[338881314,1726999838591,-150.0,0.00012168,2]
[338881315,1726999838601,-387.67236248,0.00012173,2]
[338881316,1726999838610,-213.0,0.00012173,2]
[338881317,1726999838620,-150.0,0.00012175,2]
[338881318,1726999838629,-387.67236248,0.00012186,2]
[338881319,1726999838639,-213.0,0.00012186,2]
[338881320,1726999838648,-150.0,0.00012187,2]
[338881321,1726999838657,-150.0,0.00012196,2]
[338881322,1726999838667,-150.0,0.00012198,2]
[338881323,1726999838676,-387.67236248,0.00012199,2]
[338881324,1726999838686,-213.0,0.00012199,2]
[338881325,1726999838695,-387.67236248,0.00012212,2]
[338881326,1726999838705,-213.0,0.00012212,2]
[338881327,1726999838714,-150.0,0.00012224,2]
[338881328,1726999838724,-387.67236248,0.00012225,2]
[338881329,1726999838733,-213.0,0.00012225,2]
[338881330,1726999838742,-387.67236248,0.00012239,2]
[338881331,1726999838751,-213.0,0.00012239,2]
[338881332,1726999838760,-387.67236248,0.00012252,2]
[338881333,1726999838769,-213.0,0.00012252,2]
[338881334,1726999838779,-150.0,0.00012252,2]
[338881335,1726999838788,-387.67236248,0.00012265,2]
[338881336,1726999838798,-213.0,0.00012265,2]
[338881337,1726999838807,-387.67236248,0.00012278,2]
[338881338,1726999838816,-213.0,0.00012278,2]
[338881339,1726999838828,-150.0,0.00012281,2]
[338881340,1726999838837,-150.0,0.00012287,2]
[338881341,1726999838847,-387.67236248,0.00012291,2]
[338881342,1726999838856,-213.0,0.00012291,2]
[338881343,1726999838866,-387.67236248,0.00012304,2]
[338881344,1726999838875,-213.0,0.00012304,2]
[338881345,1726999838885,-150.0,0.00012309,2]
[338881346,1726999838894,-387.67236248,0.00012317,2]
[338881347,1726999838904,-213.0,0.00012317,2]
[338881348,1726999838914,-387.67236248,0.0001233,2]
[338881349,1726999838924,-213.0,0.0001233,2]
[338881350,1726999838934,-150.0,0.00012337,2]
[338881351,1726999838943,-150.0,0.00012337,2]
[338881352,1726999838952,-387.67236248,0.00012344,2]
[338881353,1726999838962,-213.0,0.00012344,2]
[338881354,1726999838971,-387.67236248,0.00012357,2]
[338881355,1726999838980,-213.0,0.00012357,2]
[338881356,1726999838989,-150.0,0.00012365,2]
[338881357,1726999838999,-387.67236248,0.0001237,2]
[338881358,1726999839009,-213.0,0.0001237,2]
[338881359,1726999839018,-387.67236248,0.00012383,2]
[338881360,1726999839028,-213.0,0.00012383,2]
[338881361,1726999839037,-150.0,0.00012387,2]
[338881362,1726999839047,-150.0,0.00012393,2]
[338881363,1726999839056,-387.67236248,0.00012396,2]
[338881364,1726999839066,-213.0,0.00012396,2]
[338881365,1726999839075,-300.0,0.000124,4]
[338881366,1726999839085,-387.67236248,0.00012409,2]
[338881367,1726999839095,-213.0,0.00012409,2]
[338881368,1726999839104,-150.0,0.00012422,2]
[338881369,1726999839114,-387.67236248,0.00012422,2]
[338881370,1726999839123,-213.0,0.00012422,2]
[338881371,1726999839133,-387.67236248,0.00012435,2]
[338881372,1726999839142,-213.0,0.00012435,2]
[338881373,1726999839152,-169.89,0.00012445,2]
[338881374,1726999839161,-387.67236248,0.00012448,2]
[338881375,1726999839170,-213.0,0.00012448,2]
[338881377,1726999839179,-150.0,0.0001245,2]
[338881379,1726999839189,-387.67236248,0.00012462,2]
[338881380,1726999839198,-213.0,0.00012462,2]
[338881381,1726999839207,-387.67236248,0.00012475,2]
[338881382,1726999839217,-213.0,0.00012475,2]
[338881383,1726999839226,-150.0,0.00012478,2]
[338881384,1726999839235,-150.0,0.00012487,2]
[338881385,1726999839245,-387.67236248,0.00012488,2]
[338881386,1726999839255,-213.0,0.00012488,2]
[338881387,1726999839265,-150.0,0.00012499,2]
[338881388,1726999839275,-600.0,0.000125,4]
[338881389,1726999839284,-387.67236248,0.00012501,2]
[338881390,1726999839294,-213.0,0.00012501,2]
[338881391,1726999839303,-150.0,0.00012506,2]
[338881392,1726999839313,-387.67236248,0.00012514,2]
[338881393,1726999839322,-213.0,0.00012514,2]
[338881394,1726999839332,-387.67236248,0.00012527,2]
[338881395,1726999839341,-213.0,0.00012527,2]
[338881396,1726999839351,-150.0,0.00012535,2]
[338881397,1726999839360,-387.67236248,0.0001254,2]
[338881398,1726999839369,-213.0,0.0001254,2]
[338881399,1726999839380,-387.67236248,0.00012553,2]
[338881400,1726999839389,-213.0,0.00012553,2]
[338881401,1726999839398,-150.0,0.00012563,2]
[338881402,1726999839408,-387.67236248,0.00012567,2]
[338881403,1726999839419,-213.0,0.00012567,2]
[338881404,1726999839429,-387.67236248,0.0001258,2]
[338881405,1726999839439,-213.0,0.0001258,2]
[338881406,1726999839448,-150.0,0.00012587,2]
[338881407,1726999839458,-150.0,0.00012591,2]
[338881408,1726999839468,-387.67236248,0.00012593,2]
[338881409,1726999839478,-213.0,0.00012593,2]
[338881410,1726999839487,-900.0,0.000126,4]
[338881411,1726999839497,-387.67236248,0.00012606,2]
[338881412,1726999839506,-213.0,0.00012606,2]
[338881413,1726999839516,-387.67236248,0.00012619,2]
[338881414,1726999839526,-213.0,0.00012619,2]
[338881415,1726999839535,-150.0,0.00012619,2]
[338881416,1726999839547,-387.67236248,0.00012632,2]
[338881417,1726999839557,-213.0,0.00012632,2]
[338881418,1726999839567,-387.67236248,0.00012645,2]
[338881419,1726999839577,-213.0,0.00012645,2]
[338881420,1726999839586,-150.0,0.00012648,2]
[338881421,1726999839597,-387.67236248,0.00012658,2]
[338881422,1726999839608,-213.0,0.00012658,2]
[338881423,1726999839619,-150.0,0.00012662,2]
[338881424,1726999839629,-387.67236248,0.00012671,2]
[338881425,1726999839639,-213.0,0.00012671,2]
[338881426,1726999839651,-150.0,0.00012676,2]
[338881427,1726999839662,-387.67236248,0.00012685,2]
[338881428,1726999839671,-213.0,0.00012685,2]
[338881429,1726999839681,-150.0,0.00012687,2]
[338881430,1726999839692,-387.67236248,0.00012698,2]
[338881431,1726999839702,-213.0,0.00012698,2]
[338881432,1726999839711,-1200.0,0.000127,4]
[338881433,1726999839722,-150.0,0.00012704,2]
[338881434,1726999839733,-387.67236248,0.00012711,2]
[338881435,1726999839744,-213.0,0.00012711,2]
[338881436,1726999839753,-857.183,0.00012716,2]
[338881437,1726999839764,-387.67236248,0.00012724,2]
[338881438,1726999839774,-213.0,0.00012724,2]
[338881439,1726999839784,-150.0,0.00012732,2]
[338881440,1726999839793,-150.0,0.00012734,2]
[338881441,1726999839803,-387.67236248,0.00012737,2]
[338881442,1726999839981,-213.0,0.00012737,2]
[338881443,1726999839991,-300.0,0.00012743,2]
[338881444,1726999840003,-387.67236248,0.0001275,2]
[338881445,1726999840012,-213.0,0.0001275,2]